bitfinex-derivatives/quotes_ETHF0:USTF0_20240904
["timestamp","ask_amount","ask_price","bid_price","bid_amount"]
[1725471261706,3.61478,2457.0,2456.8,0.00609657]
[1725471261907,0.40699,2456.9,2456.8,0.00609657]
[1725471262215,0.40699,2456.9,2456.0,0.4425]
[1725471262216,5.29491846,2456.9,2456.0,0.4425]
[1725471262417,2.12494592,2456.4,2456.0,0.4425]
[1725471262620,2.12494592,2456.4,2456.2,0.4071]
[1725471262917,2.12494592,2456.3,2456.0,0.4425]
[1725471263122,2.12494592,2456.1,2455.9,3.2078]
[1725471263511,2.12494592,2456.1,2456.0,0.40714]
[1725471263919,2.12494592,2456.1,2455.9,3.61495]
[1725471264315,2.12494592,2456.0,2455.7,0.4364]
[1725471264612,2.12494592,2455.9,2455.7,0.84358]
[1725471264918,9.41084249,2456.0,2455.2,3.2078]
[1725471265218,9.41084249,2456.0,2455.3,0.40725]
[1725471265219,2.12494592,2455.5,2455.3,0.40725]
[1725471265411,2.12494592,2455.5,2455.2,3.61507]
[1725471265717,2.12494592,2455.5,2455.2,3.2078]
[1725471265921,2.12494592,2455.5,2455.3,0.40725]
[1725471266225,1.01819,2455.2,2454.2,0.40743]
[1725471266515,3.2078,2454.7,2454.0,3.2803]
[1725471266817,2.65669844,2455.0,2454.5,0.40739]
[1725471266818,0.00610911,2454.6,2454.5,0.40739]
[1725471267224,0.00610911,2454.6,2454.5,11.97207]
[1725471267521,0.00610911,2454.6,2454.5,5.97207]
[1725471267816,0.00610911,2454.6,2454.5,4.95359]
[1725471268207,0.00610911,2454.6,2454.5,5.97207]
[1725471268417,0.00610911,2454.6,2454.5,11.97207]
[1725471268717,3.2078,2454.9,2454.5,11.97207]
[1725471268718,3.2078,2455.3,2454.5,25.26301075]
[1725471268916,2.12535875,2455.5,2455.4,0.40724]
[1725471269134,2.12535875,2455.8,2455.7,0.40719]
[1725471269311,3.6482,2456.0,2455.9,0.40716]
[1725471269312,5.33315875,2456.0,2455.9,0.40716]
[1725471269511,3.2078,2456.0,2455.9,0.40716]
[1725471269719,2.12792502,2456.2,2456.1,0.40712]
[1725471270024,0.00610911,2456.2,2456.1,4.47832]
[1725471270615,0.00610911,2456.2,2456.1,8.70394]
[1725471270616,9.11e-06,2456.2,2456.1,8.70394]
[1725471270821,2.12181591,2456.9,2456.7,1.01757]
[1725471271020,2.12181591,2457.2,2456.8,3.2078]
[1725471271214,2.12181591,2457.2,2457.1,0.40696]
[1725471271414,2.65669844,2457.4,2456.9,1.01749]
[1725471271415,2.12181591,2457.4,2457.0,1.01741]
[1725471271614,2.12181591,2457.5,2457.0,1.01745]
[1725471271823,2.12792502,2457.5,2457.4,0.40691]
[1725471273024,2.12792502,2457.5,2457.0,1.02351911]
[1725471273025,2.12792502,2457.5,2457.3,0.40693]
[1725471273318,2.1265152,2457.5,2457.2,0.40693]
[1725471273521,2.1265152,2457.5,2457.0,0.00610911]
[1725471273522,2.12040609,2457.4,2457.3,0.40693]
[1725471273717,5.32820609,2457.4,2457.0,0.00610911]
[1725471273915,2.12040609,2457.2,2457.1,0.40696]
[1725471274111,3.06362844,2457.3,2457.0,0.41306911]
[1725471274419,5.86449844,2457.1,2456.2,3.2078]
[1725471274627,5.86449844,2457.1,2456.6,0.40704]
[1725471274628,2.12145983,2456.7,2456.6,0.40704]
[1725471274922,2.12145983,2456.8,2456.7,0.40702]
[1725471275120,2.12145983,2456.9,2456.8,0.40701]
[1725471275323,2.65669844,2457.0,2456.9,0.40699]
[1725471275714,6.72709844,2457.0,2456.9,0.40699]
[1725471275909,6.72709844,2457.0,2456.8,0.407]
[1725471276125,3.2078,2457.2,2456.8,0.407]
[1725471276126,5.86449844,2456.9,2456.8,0.40701]
[1725471276311,3.2078,2456.9,2456.7,0.00610911]
[1725471276512,3.2078,2456.9,2456.8,0.40701]
[1725471276716,2.65669844,2457.0,2456.7,0.00610911]
[1725471276919,2.65669844,2457.0,2456.9,0.40699]
[1725471277217,2.65669844,2457.1,2457.0,0.40698]
[1725471278613,2.65669844,2457.1,2457.0,0.31698]
[1725471278826,2.65669844,2457.1,2456.7,0.00610911]
[1725471279128,6.27149844,2456.9,2456.7,0.00610911]
[1725471279315,6.27149844,2456.9,2456.7,0.41312911]
[1725471279519,4.47741,2456.8,2456.7,0.00610911]
[1725471279819,4.47741,2456.8,2456.2,0.4071]
[1725471279820,1.01759,2456.7,2456.2,0.4071]
[1725471280018,6.8804,2456.8,2456.3,0.40709]
[1725471280019,3.2078,2456.4,2456.3,0.40709]
[1725471280323,2.65226165,2456.6,2456.5,0.40706]
[1725471280520,5.86006165,2456.7,2456.6,0.40704]
[1725471280920,9.93046165,2456.7,2456.6,0.40704]
[1725471281326,5.86006165,2456.7,2456.6,0.40704]
[1725471281522,3.2078,2456.7,2456.6,0.40704]
[1725471282125,2.65837076,2456.9,2456.4,1.01767]
[1725471282332,2.65837076,2456.9,2456.8,0.40701]
[1725471282628,0.00610911,2456.9,2456.8,0.40701]
[1725471284146,4.07650911,2456.9,2456.8,0.40701]
[1725471284340,6.72877076,2456.9,2456.8,0.40701]
[1725471285029,0.40701,2456.8,2456.6,0.40703]
[1725471285225,0.00610911,2456.9,2456.3,3.2078]
[1725471285427,0.00610911,2456.9,2456.8,0.40701]
[1725471285924,0.00610911,2456.9,2456.8,1.42454]
[1725471286224,0.00610911,2456.9,2456.8,0.40701]
[1725471286537,0.00610911,2456.9,2456.8,6.51247]
[1725471286732,0.00610911,2456.9,2456.8,12.51247]
[1725471287626,0.00610911,2456.9,2456.8,12.96127]
[1725471287823,9.11e-06,2456.9,2456.8,12.96127]
[1725471289035,9.11e-06,2456.9,2456.8,26.52601454]
[1725471289627,0.86758,2458.2,2456.8,18.79055146]
[1725471289628,2.62226165,2458.0,2456.8,18.79055146]
[1725471289830,2.62226165,2458.1,2458.0,0.40681]
[1725471290232,0.4608,2458.2,2458.1,0.40679]
[1725471290436,0.4608,2458.2,2457.7,3.6805]
[1725471290732,0.46690911,2458.2,2458.0,0.4068]
[1725471290932,3.2078,2458.1,2458.0,0.4068]
[1725471291729,3.2078,2458.1,2457.7,0.00610911]
[1725471291938,3.61464,2457.8,2457.7,0.00610911]
[1725471292436,13.68344,2457.8,2457.7,0.00610911]
[1725471292639,13.2766,2457.8,2457.7,0.41296911]
[1725471292829,13.68344,2457.8,2457.7,0.00610911]
[1725471293233,1.01716,2457.7,2457.0,1.01745]
[1725471293432,0.40689,2457.5,2457.3,0.40692]
[1725471293631,0.40689,2457.5,2457.0,1.01745]
[1725471293632,3.61472,2457.4,2457.2,0.40693]
[1725471293833,0.40694,2457.3,2457.1,0.40695]
[1725471294639,3.61472,2457.4,2457.2,0.40694]
[1725471294936,3.2078,2457.4,2456.9,1.01747]
[1725471295130,3.2078,2457.4,2457.2,0.40694]
[1725471295330,3.2078,2457.4,2457.3,0.40693]
[1725471296338,0.4506,2457.5,2457.4,0.40691]
[1725471296639,3.2078,2457.7,2457.6,0.40688]
[1725471298636,3.2078,2457.7,2457.1,3.2078]
[1725471298637,3.2078,2458.0,2457.7,0.40685]
[1725471298940,0.40683,2457.9,2457.7,0.40685]
[1725471299134,3.2078,2458.0,2457.0,1.01744]
[1725471299447,3.61466,2457.7,2457.5,0.40688]
[1725471299640,3.2078,2457.7,2457.6,0.40688]
[1725471299938,0.4506,2458.1,2457.7,1.01716]
[1725471300243,0.40684,2457.8,2457.7,0.4421]
[1725471300446,0.40684,2457.8,2457.6,0.40687]
[1725471300739,3.61467,2457.7,2457.5,0.40689]
[1725471301141,3.2078,2457.7,2457.6,0.40688]
[1725471301642,3.6584,2458.1,2457.7,1.01716]
[1725471301843,3.21390911,2458.2,2458.1,0.40679]
[1725471302147,0.4068,2458.1,2457.6,1.0172]
[1725471302349,3.2078,2457.9,2457.6,1.0172]
[1725471302646,3.2078,2457.9,2457.8,1.42395]
[1725471302842,7.2766,2457.9,2457.3,1.01729]
[1725471303038,3.2078,2457.4,2457.3,0.40693]
[1725471303235,3.2078,2457.4,2457.2,0.84903]
[1725471303431,3.2078,2457.4,2457.3,0.40693]
[1725471304945,3.2078,2457.9,2457.8,0.40684]
[1725471305837,0.4663,2458.3,2457.7,1.01715]
[1725471306133,3.2078,2457.9,2457.8,0.40684]
[1725471306341,0.87307,2458.3,2458.1,0.40679]
[1725471306535,3.21390911,2458.2,2458.1,0.40679]
[1725471308250,8.29886911,2458.2,2457.6,0.4671]
[1725471308437,3.2078,2457.7,2457.6,1.89118]
[1725471308944,0.00610911,2458.2,2458.1,0.40679]
[1725471309641,0.41288911,2458.2,2458.1,0.40679]
[1725471309834,0.00610911,2458.2,2458.1,0.40679]
[1725471310651,0.00610911,2458.2,2458.1,1.42378]
[1725471310946,0.00610911,2458.2,2458.1,6.50877]
[1725471311443,0.00610911,2458.2,2458.1,12.50877]
[1725471311642,3.2078,2458.7,2458.6,0.40671]
[1725471311838,3.2078,2458.7,2458.6,1.42349]
[1725471312439,3.2078,2458.7,2458.6,0.40671]
[1725471313346,3.2078,2458.7,2458.6,1.42349]
[1725471314341,3.2078,2458.7,2458.6,2.44027]
[1725471314552,0.00610911,2458.9,2458.8,2.44008]
[1725471314850,0.00610911,2458.9,2458.8,9.31728]
[1725471315052,2.64578482,2459.2,2459.1,1.42321]
[1725471315252,2.64578482,2459.2,2459.1,0.40663]
[1725471315849,2.64578482,2459.2,2459.1,4.47303]
[1725471316351,2.64578482,2459.2,2459.1,5.48961]
[1725471316649,2.64578482,2459.2,2459.1,5.95941]
[1725471317245,2.64578482,2459.2,2459.1,4.94283]
[1725471317449,2.64578482,2459.2,2459.1,0.40663]
[1725471317947,2.64578482,2459.2,2459.1,4.47303]
[1725471318148,2.64578482,2459.2,2459.1,5.48961]
[1725471318449,2.64578482,2459.2,2459.1,14.29961]
[1725471318644,0.00610911,2459.4,2459.1,14.29961]
[1725471318645,0.00610911,2459.4,2459.3,2.43957]
[1725471318850,0.00610911,2459.4,2459.3,1.42308]
[1725471319052,0.00610911,2459.4,2459.3,5.48948]
[1725471319351,3.21390911,2459.4,2459.3,5.48948]
[1725471319552,0.00610911,2459.4,2459.3,6.50597]
[1725471319750,0.00610911,2459.4,2459.3,12.50597]
[1725471320455,9.11e-06,2459.4,2459.3,12.50597]
[1725471321054,9.11e-06,2459.4,2459.3,5.48948]
[1725471321347,9.11e-06,2459.4,2459.3,0.40659]
[1725471322347,9.11e-06,2459.4,2459.3,0.41726176]
[1725471325057,9.11e-06,2459.4,2459.3,6.51664176]
[1725471325353,9.11e-06,2459.4,2459.3,12.51664176]
[1725471325752,9.11e-06,2459.4,2459.3,4.48366176]
[1725471325958,9.11e-06,2459.4,2459.3,5.50015176]
[1725471326153,9.11e-06,2459.4,2459.3,4.48366176]
[1725471326354,9.11e-06,2459.4,2459.3,5.50015176]
[1725471327259,9.11e-06,2459.4,2459.3,12.51664176]
[1725471327559,9.11e-06,2459.4,2459.3,12.96914176]
[1725471327759,9.11e-06,2459.4,2459.3,15.00213176]
[1725471328061,2.27691799,2459.5,2459.4,8.53879]
[1725471328255,2.27691799,2459.5,2459.4,4.48365176]
[1725471328556,0.40665,2459.0,2458.5,3.2078]
[1725471328755,3.2078,2459.0,2458.5,3.2078]
[1725471329060,3.21390911,2459.0,2458.5,3.6402]
[1725471329258,3.21390911,2459.0,2458.7,0.40669]
[1725471329659,3.21390911,2459.0,2458.6,0.40671]
[1725471329854,3.21390911,2459.0,2458.5,0.4324]
[1725471329855,3.21390911,2459.0,2458.7,0.40669]
[1725471330257,3.21390911,2459.0,2458.4,0.00610911]
[1725471330451,3.2078,2458.6,2458.4,0.00610911]
[1725471332359,5.36873,2458.5,2458.4,0.00610911]
[1725471332558,0.40677,2458.3,2457.9,0.40683]
[1725471332759,3.2078,2458.1,2457.9,0.40683]
[1725471333063,3.2078,2458.1,2457.8,0.40683]
[1725471333462,3.2078,2458.1,2457.5,2.81]
[1725471333463,3.2078,2458.1,2457.9,0.40682]
[1725471333664,3.2078,2458.1,2458.0,0.40681]
[1725471333854,4.1026,2458.5,2458.4,0.40674]
[1725471334263,3.2078,2458.8,2458.5,0.40672]
[1725471334653,3.2078,2458.8,2458.6,0.40671]
[1725471334965,3.2078,2458.8,2458.6,0.4067]
[1725471335162,3.2078,2458.8,2458.5,0.40672]
[1725471335466,3.2078,2458.8,2458.1,0.4644]
[1725471335660,3.2078,2458.8,2458.5,0.40672]
[1725471335862,3.2078,2458.8,2458.6,0.4067]
[1725471336163,3.2078,2458.8,2458.7,0.40669]
[1725471336752,3.2078,2458.8,2458.6,0.4067]
[1725471336957,0.40672,2458.6,2458.3,0.40676]
[1725471337160,3.2078,2458.4,2458.3,0.40676]
[1725471337761,3.2078,2458.4,2458.2,0.40677]
[1725471338061,3.2078,2458.4,2457.7,0.00610911]
[1725471338260,3.2078,2458.1,2458.0,0.40681]
[1725471339064,3.61454,2458.4,2458.2,0.40677]
[1725471339265,3.2078,2458.4,2458.3,0.40676]
[1725471340869,3.61454,2458.4,2458.3,0.40676]
[1725471341066,3.2078,2458.4,2458.3,0.40676]
[1725471342968,3.61456,2458.4,2458.2,0.40677]
[1725471343159,3.2078,2458.4,2458.3,0.40676]
[1725471343360,3.61454,2458.4,2458.2,0.40676]
[1725471343562,0.89256,2458.3,2458.2,0.40676]
[1725471343761,0.4858,2458.3,2457.7,3.83323911]
[1725471343961,3.2078,2458.1,2458.0,0.40679]
[1725471344465,3.2078,2458.1,2457.7,0.41295911]
[1725471344670,3.61464,2457.8,2457.7,0.00610911]
[1725471344863,3.2078,2457.8,2457.7,0.41296911]
[1725471345572,3.61461,2458.1,2457.7,0.00610911]
[1725471345758,3.61461,2458.1,2458.0,0.40681]
[1725471345963,3.2078,2458.1,2458.0,0.40681]
[1725471346166,0.40681,2458.0,2457.9,0.40682]
[1725471346368,3.2078,2458.1,2458.0,0.40681]
[1725471346561,0.40681,2458.0,2457.9,0.40682]
[1725471346966,3.6146,2458.1,2458.0,0.40681]
[1725471347471,3.2078,2458.1,2458.0,0.40681]
[1725471347968,0.483,2458.2,2458.1,0.40679]
[1725471348467,4.551,2458.2,2458.1,0.40679]
[1725471348772,0.483,2458.2,2458.1,0.40679]
[1725471350365,3.2078,2458.4,2458.3,0.40676]
[1725471351077,3.2078,2458.4,2458.3,1.42367]
[1725471351268,5.85013582,2458.7,2458.6,0.40671]
[1725471351570,6.25682582,2458.7,2458.6,0.40671]
[1725471351761,5.85013582,2458.7,2458.6,0.40671]
[1725471352371,5.85013582,2458.7,2458.0,4.31122]
[1725471352574,3.61452,2458.6,2458.5,0.40673]
[1725471352768,0.40673,2458.5,2458.4,0.40673]
[1725471353067,3.6973,2458.6,2458.1,1.01699]
[1725471353266,3.2078,2458.6,2458.5,0.40673]
[1725471353467,3.2078,2458.6,2458.5,1.42355]
[1725471353667,3.2078,2458.6,2458.5,0.40673]
[1725471354075,0.40674,2458.5,2458.4,0.40673]
[1725471354465,3.61452,2458.6,2458.5,0.40673]
[1725471354863,3.2078,2458.6,2458.5,0.40673]
[1725471355172,3.2078,2458.6,2458.5,1.42355]
[1725471355768,3.2078,2458.6,2458.5,0.40673]
[1725471356174,3.2078,2458.6,2458.5,1.42355]
[1725471356574,3.2078,2458.6,2458.5,0.40673]
[1725471356977,3.2078,2458.6,2458.5,1.42355]
[1725471357270,3.2078,2458.6,2458.5,0.40673]
[1725471358983,3.2078,2458.6,2458.5,1.42355]
[1725471359190,2.64233582,2458.7,2458.6,0.40671]
[1725471359873,5.85013582,2458.7,2458.6,0.40671]
[1725471360775,3.2078,2458.7,2458.6,0.40671]
[1725471361478,2.64233582,2458.9,2458.8,0.40668]
[1725471364082,3.04899582,2458.9,2458.3,3.8269]
[1725471364284,3.2078,2458.7,2458.6,0.40671]
[1725471364477,3.2078,2458.7,2458.0,2.81]
[1725471364677,3.2078,2458.4,2457.8,4.2249]
[1725471364882,1.46718,2458.6,2458.0,0.4068]
[1725471364883,3.2078,2458.1,2458.0,0.4068]
[1725471366379,3.2078,2458.1,2457.7,4.76313911]
[1725471366380,0.40684,2457.8,2457.7,0.00610911]
[1725471366573,3.61464,2457.8,2457.7,0.00610911]
[1725471366776,7.68344,2457.8,2457.7,0.00610911]
[1725471366981,0.40687,2457.7,2457.3,0.40691]
[1725471367175,3.2078,2457.5,2457.4,0.40691]
[1725471367378,3.2078,2457.5,2457.3,0.40692]
[1725471367685,3.2078,2457.5,2457.4,0.40691]
[1725471369283,3.2078,2457.5,2457.3,0.40692]
[1725471369490,0.40701,2456.9,2456.0,3.2078]
[1725471369779,3.2078,2456.7,2456.2,0.9274]
[1725471369978,3.2078,2456.7,2456.4,0.40707]
[1725471370179,3.61483,2456.7,2456.4,0.40707]
[1725471370576,6.8804,2456.6,2455.5,1.01804]
[1725471370879,3.2078,2456.0,2455.9,0.40716]
[1725471371276,3.2078,2456.0,2455.9,4.47916]
[1725471371483,0.00610911,2456.3,2456.1,0.40712]
[1725471371886,0.00610911,2456.3,2456.2,1.42489]
[1725471372076,0.00610911,2456.3,2456.2,5.95189]
[1725471372274,0.00610911,2456.3,2456.2,12.96967]
[1725471372475,3.2078,2456.8,2456.7,0.40702]
[1725471373183,3.2078,2456.8,2456.2,1.3948]
[1725471373484,0.00610911,2456.7,2456.3,0.00610911]
[1725471373683,3.2078,2456.5,2456.4,0.40707]
[1725471373873,3.2078,2456.5,2456.3,0.00610911]
[1725471374487,3.2078,2456.5,2456.3,0.41319911]
[1725471375279,3.61486,2456.5,2456.3,0.00610911]
[1725471375480,3.2078,2456.5,2456.3,0.00610911]
[1725471375679,3.2078,2456.5,2456.3,0.41319911]
[1725471376186,3.61486,2456.5,2456.3,0.00610911]
[1725471376382,4.47827,2456.4,2456.3,0.00610911]
[1725471376588,4.47827,2456.4,2455.6,3.2078]
[1725471376589,4.5297,2456.4,2455.6,3.2078]
[1725471376889,3.2078,2456.1,2456.0,1.425]
[1725471377088,4.31844295,2456.6,2455.7,11.18982662]
[1725471377089,3.2078,2456.5,2456.3,0.40709]
[1725471377288,3.61487,2456.5,2456.2,0.4071]
[1725471377486,3.2078,2456.5,2456.3,0.40708]
[1725471377696,3.2078,2456.5,2456.4,0.40707]
[1725471377992,0.00610911,2456.7,2456.6,0.40704]
[1725471378184,3.21390911,2456.7,2456.6,0.40704]
[1725471378793,3.21390911,2456.7,2456.6,10.47744]
[1725471379084,3.21390911,2456.7,2456.0,3.82782]
[1725471379290,0.00610911,2456.7,2456.2,1.01776]
[1725471379594,0.00610911,2456.7,2456.6,0.40704]
[1725471379787,3.21390911,2456.7,2456.6,0.40704]
[1725471380780,3.21390911,2456.7,2456.6,1.42465]
[1725471380978,3.21390911,2456.7,2456.6,11.49505]
[1725471381700,3.21390911,2456.7,2456.6,12.51266]
[1725471381701,0.00610911,2456.7,2456.6,12.51266]
[1725471382385,0.00610911,2456.7,2456.6,14.54789]
[1725471382386,9.11e-06,2456.7,2456.6,14.54789]
[1725471382581,4.111,2457.7,2457.3,1.42425]
[1725471382582,3.2078,2457.7,2457.3,1.42425]
[1725471382793,3.2078,2457.7,2457.3,3.21693]
[1725471383186,7.7696,2458.1,2457.4,0.4875]
[1725471383381,4.96859,2458.1,2457.8,0.40684]
[1725471383589,3.2078,2457.9,2457.8,0.40684]
[1725471383891,7.2766,2457.9,2457.7,0.00610911]
[1725471384197,1.42395,2457.8,2457.7,0.00610911]
[1725471384383,5.49275,2457.8,2457.7,0.00610911]
[1725471384990,4.47564,2457.8,2457.7,0.00610911]
[1725471386693,11.08591,2457.8,2457.1,0.40695]
[1725471386892,3.2078,2457.2,2457.1,0.40695]
[1725471387198,0.40691,2457.4,2457.2,0.40693]
[1725471387397,0.40693,2457.3,2457.0,0.40696]
[1725471387594,3.2078,2457.2,2457.0,0.40696]
[1725471388095,0.469,2457.4,2456.9,0.4875]
[1725471388096,0.87592,2457.4,2456.9,0.4875]
[1725471388301,0.87592,2457.4,2457.2,0.40693]
[1725471389492,0.87592,2457.4,2457.2,0.40694]
[1725471389699,0.87592,2457.4,2456.9,0.4875]
[1725471389700,0.40694,2457.3,2457.1,0.40695]
[1725471389896,3.2078,2457.2,2457.1,0.40695]
[1725471392702,3.2078,2457.2,2457.1,1.42435]
[1725471393100,3.2078,2457.7,2457.6,0.40688]
[1725471393309,3.2078,2458.1,2457.6,1.0172]
[1725471393497,3.2078,2458.1,2458.0,0.40681]
[1725471394204,0.00610911,2458.2,2458.1,0.40679]
[1725471394899,0.00610911,2458.2,2457.8,1.0171]
[1725471394900,0.00610911,2458.2,2458.0,0.4068]
[1725471395104,3.2078,2458.1,2458.0,0.4068]
[1725471395304,7.2758,2458.1,2457.5,0.4925]
[1725471395603,3.2078,2457.8,2457.6,0.40688]
[1725471395798,3.2078,2457.8,2457.5,0.4925]
[1725471396002,0.40686,2457.7,2457.4,0.4069]
[1725471396202,3.2078,2457.8,2457.3,0.4358]
[1725471396392,3.2078,2457.8,2457.3,0.84271]
[1725471396597,0.40686,2457.7,2457.3,0.4358]
[1725471396799,0.40688,2457.6,2457.3,0.84272]
[1725471397095,3.2078,2457.5,2457.1,0.4697]
[1725471397296,3.2078,2457.4,2457.2,0.40693]
[1725471397696,3.61471,2457.4,2457.1,0.87666]
[1725471398100,3.2078,2457.4,2457.2,0.40693]
[1725471398302,3.2078,2457.4,2457.3,0.40693]
[1725471398504,3.2078,2457.4,2457.1,0.4697]
[1725471398708,3.61472,2457.4,2457.1,0.4697]
[1725471398909,3.61472,2457.4,2457.1,0.87665]
[1725471399106,3.2078,2457.4,2457.1,0.87665]
[1725471399413,0.40693,2457.3,2457.0,0.40697]
[1725471399615,3.2078,2457.1,2456.9,0.84888]
[1725471399903,3.2078,2457.1,2456.7,0.468]
[1725471400103,3.2078,2457.1,2456.7,0.40702]
[1725471400104,0.40698,2457.0,2456.7,0.40702]
[1725471400304,3.2078,2456.8,2456.6,0.40703]
[1725471400708,3.2078,2456.8,2456.5,6.02383609]
[1725471400709,1.42469,2456.6,2456.5,6.02383609]
[1725471400901,1.42469,2456.6,2455.5,5.24386]
[1725471400902,0.40706,2456.5,2456.2,0.4071]
[1725471401097,3.2078,2456.3,2456.2,0.4071]
[1725471402301,3.6149,2456.3,2456.0,0.40714]
[1725471402713,3.2078,2456.3,2455.7,0.4445]
[1725471402903,3.2078,2456.6,2456.4,0.40707]
[1725471403106,3.2078,2456.6,2456.3,0.40708]
[1725471403304,3.61485,2456.6,2455.9,1.0179]
[1725471403503,3.2078,2456.3,2456.2,0.40711]
[1725471404408,0.4736,2456.7,2455.9,1.01788]
[1725471404409,3.61484,2456.6,2456.3,0.40708]
[1725471404608,3.61485,2456.6,2456.3,0.40709]
[1725471404810,0.40706,2456.5,2456.2,0.4071]
[1725471405112,3.2078,2456.3,2456.2,0.4071]
[1725471406707,3.2078,2456.3,2455.8,1.01794]
[1725471406708,3.2078,2456.3,2456.1,0.40711]
[1725471406907,3.2078,2456.3,2456.1,0.40712]
[1725471407113,3.6149,2456.3,2455.7,0.4445]
[1725471407318,3.82138132,2456.3,2456.0,0.40714]
[1725471407612,0.40711,2456.2,2455.9,0.40715]
[1725471407814,3.2078,2456.0,2455.7,0.4445]
[1725471408004,3.61495,2456.0,2455.7,0.85168]
[1725471408516,3.2078,2456.0,2455.9,0.40716]
[1725471410613,3.2078,2456.0,2455.9,4.47916]
[1725471410821,3.2078,2456.0,2455.9,5.49706]
[1725471412119,3.2078,2456.0,2455.9,12.51496]
[1725471412922,3.2078,2456.6,2455.9,10.072]
[1725471413119,3.2078,2456.6,2456.5,0.40706]
[1725471416210,2.65417478,2456.7,2456.6,0.40704]
[1725471416425,3.2078,2456.7,2456.6,0.40704]
[1725471417313,3.2078,2456.7,2456.6,1.42465]
[1725471417725,3.2078,2456.7,2456.6,0.40704]
[1725471420211,3.2078,2456.7,2456.6,6.51266]
[1725471420413,3.2078,2456.7,2456.6,12.51266]
[1725471420926,0.00610911,2456.9,2456.8,1.42454]
[1725471421115,0.00610911,2456.9,2456.8,2.44207]
[1725471421418,0.00610911,2456.9,2456.8,6.51247]
[1725471421813,0.00610911,2456.9,2456.8,10.47741]
[1725471422011,0.40701,2456.8,2456.4,0.4887]
[1725471422223,3.2078,2456.6,2456.5,0.40706]
[1725471422420,0.00610911,2456.9,2456.8,0.40701]
[1725471422618,6.73068389,2456.9,2456.4,0.4887]
[1725471422815,3.2078,2456.7,2456.6,0.40704]
[1725471423019,3.2078,2456.7,2456.5,0.40705]
[1725471423325,3.2078,2456.7,2456.6,0.40704]
[1725471423618,5.86197478,2456.7,2456.6,0.40704]
[1725471424224,2.65417478,2456.8,2456.7,0.40702]
[1725471424526,2.65417478,2456.8,2456.6,0.40703]
[1725471424819,2.65417478,2456.8,2456.7,0.40702]
[1725471425126,2.66121187,2456.9,2456.8,0.40701]
[1725471425429,2.66121187,2456.9,2456.8,3.21701]
[1725471425430,2.66138757,2456.9,2456.8,3.21701]
[1725471425619,0.00610911,2456.9,2456.8,7.28741]
[1725471425818,0.00610911,2456.9,2456.8,4.47741]
[1725471426324,0.00610911,2456.9,2456.8,0.40701]
[1725471427123,0.00610911,2456.9,2456.8,1.42454]
[1725471427329,5.86307846,2457.3,2457.2,0.40694]
[1725471427519,2.65527846,2457.5,2457.4,0.40691]
[1725471428317,6.72487846,2457.5,2457.2,0.4871]
[1725471428624,6.72487846,2457.5,2457.1,0.00610911]
[1725471428625,3.61473,2457.3,2457.1,0.00610911]
[1725471428814,2.6549812,2457.2,2457.1,0.00610911]
[1725471429225,0.40694,2457.2,2457.1,0.00610911]
[1725471429523,4.47654,2457.2,2457.1,0.00610911]
[1725471429729,14.71227358,2457.2,2456.5,0.4871]
[1725471430021,3.2078,2456.7,2456.5,0.4871]
[1725471430221,5.86356356,2456.7,2456.6,0.40704]
[1725471430426,3.2078,2456.7,2456.3,0.455]
[1725471430626,2.6561909,2456.6,2456.5,0.40706]
[1725471430831,2.6561909,2456.6,2456.3,0.455]
[1725471431128,3.2078,2456.7,2456.6,0.40704]
[1725471431129,6.3100909,2456.7,2456.6,0.40704]
[1725471431323,3.6539,2456.7,2456.3,0.455]
[1725471431525,3.6539,2456.7,2456.2,0.4645]
[1725471431526,2.65635659,2456.6,2456.2,0.4645]
[1725471431729,3.6539,2456.7,2456.4,0.40706]
[1725471431730,2.65635659,2456.5,2456.4,0.40706]
[1725471432318,2.65635659,2456.6,2456.5,0.40706]
[1725471432519,5.86415659,2456.7,2456.6,0.40704]
[1725471432831,3.2078,2456.7,2456.6,0.40704]
[1725471433128,3.2078,2456.7,2456.6,4.47744]
[1725471433334,3.2078,2456.7,2456.6,0.40704]
[1725471433629,3.2078,2456.7,2456.6,8.30505]
[1725471434037,2.65635659,2457.1,2457.0,0.40698]
[1725471434430,3.2078,2457.3,2457.2,0.40694]
[1725471435225,3.2078,2457.3,2457.1,0.40695]
[1725471435540,3.2078,2457.3,2457.2,0.40694]
[1725471436934,5.86408714,2457.3,2457.2,0.40694]
[1725471437238,2.6562475,2457.4,2457.3,0.40693]
[1725471437440,2.6562475,2457.5,2457.4,0.40691]
[1725471438137,4.0696,2457.5,2456.8,3.2688]
[1725471438338,3.2078,2457.1,2457.0,0.40698]
[1725471438542,5.86407359,2457.1,2457.0,0.40698]
[1725471439041,5.86407359,2457.1,2456.8,0.8658]
[1725471439244,5.86407359,2457.1,2456.8,0.4588]
[1725471439547,2.65627359,2457.1,2456.8,0.8658]
[1725471439740,2.65627359,2457.1,2456.9,0.40699]
[1725471440046,5.86407359,2457.1,2456.8,0.4588]
[1725471440234,2.65627359,2457.0,2456.8,0.4588]
[1725471440436,3.06325359,2457.0,2456.5,4.06515]
[1725471440734,2.65627359,2456.7,2456.0,2.81]
[1725471441038,0.40708,2456.4,2456.0,2.81]
[1725471441240,5.86407359,2456.2,2455.9,1.34555]
[1725471441540,2.65627359,2456.1,2455.9,0.9384]
[1725471441759,2.65627359,2456.1,2455.9,1.34555]
[1725471441932,5.86407359,2456.2,2455.9,1.34555]
[1725471442136,2.65627359,2456.1,2455.9,1.34555]
[1725471442341,2.65627359,2456.2,2456.0,0.40714]
[1725471442736,2.65627359,2456.2,2455.9,0.9384]
[1725471443042,2.65627359,2456.1,2455.9,1.34555]
[1725471443236,2.65627359,2456.2,2455.9,1.34555]
[1725471443636,2.65627359,2456.1,2455.9,1.34555]
[1725471444138,2.65627359,2456.1,2456.0,0.40714]
[1725471445050,2.65627359,2456.1,2455.9,1.34555]